bitfinex-derivatives/quotes_SOLF0:USTF0_20250714
["timestamp","ask_amount","ask_price","bid_price","bid_amount"]
[1752535327535,6.1726,161.97,161.93,6.2151495]
[1752535327830,4.60408421,161.98,161.93,3.40322621]
[1752535328035,4.60408421,161.99,161.95,3.36197671]
[1752535328230,4.60408421,162.0,161.95,3.36197671]
[1752535328733,4.60408421,162.0,161.96,6.21376483]
[1752535328929,6.1711,162.01,161.96,6.21376483]
[1752535329232,7.96606092,162.02,161.96,0.04116483]
[1752535329436,3.36197671,162.02,161.96,0.04116483]
[1752535330031,6.1716,162.0,161.96,0.04116483]
[1752535330432,6.1716,162.0,161.96,6.21386483]
[1752535330736,6.1716,162.0,161.96,0.04116483]
[1752535331228,3.36197671,162.02,161.96,6.21386483]
[1752535331229,6.1711,162.01,161.96,6.21386483]
[1752535331938,10.77518421,162.01,161.96,6.21386483]
[1752535332135,6.1711,162.01,161.96,6.21386483]
[1752535333138,6.1713,162.0,161.96,6.21386483]
[1752535333332,6.1713,162.0,161.96,0.04116483]
[1752535333939,6.171,162.01,161.96,6.21396483]
[1752535334139,6.171,162.01,161.96,0.04116483]
[1752535334435,6.1711,162.01,161.96,9.57574154]
[1752535336643,3.36197671,162.03,161.96,3.40314154]
[1752535336846,3.36197671,162.01,161.96,0.04116483]
[1752535337137,9.74367067,162.04,161.96,0.04116483]
[1752535337333,3.36197671,162.01,161.96,0.04116483]
[1752535337736,9.53317671,162.01,161.96,6.21386483]
[1752535338138,6.1713,162.0,161.96,0.04116483]
[1752535339543,6.1718,161.99,161.96,0.04116483]
[1752535339839,3.36197671,162.01,161.96,0.04116483]
[1752535340143,6.1714,162.0,161.96,0.04116483]
[1752535341742,6.1714,162.0,161.96,6.21396483]
[1752535342444,6.1718,161.99,161.96,0.04116483]
[1752535342639,3.36197671,162.01,161.96,0.04116483]
[1752535343142,6.1714,162.0,161.96,0.04116483]
[1752535343840,6.1718,161.99,161.96,0.04116483]
[1752535347058,8.31844018,161.99,161.96,0.04116483]
[1752535347755,6.1722,161.98,161.96,0.04116483]
[1752535350052,4.59122453,162.0,161.96,6.21376483]
[1752535350252,6.73786471,161.99,161.96,0.04116483]
[1752535350452,2.14664018,161.99,161.96,0.04116483]
[1752535350655,6.73786471,161.99,161.96,0.04116483]
[1752535350859,2.14664018,161.99,161.96,0.04116483]
[1752535351057,6.1721,161.98,161.96,0.04116483]
[1752535351252,2.14664018,161.98,161.96,0.04116483]
[1752535351448,4.59122453,161.97,161.96,0.04116483]
[1752535353151,12.91026471,161.97,161.96,0.04116483]
[1752535353361,12.91026471,161.97,161.89,533.3]
[1752535353362,6.73786471,161.97,161.89,533.3]
[1752535353655,2.14664018,161.95,161.9,2.14664018]
[1752535353854,6.73786471,161.94,161.91,6.1744]
[1752535354061,6.73786471,161.94,161.9,2.14664018]
[1752535354358,6.73786471,161.94,161.92,6.1741]
[1752535354564,6.77771048,161.94,161.92,6.1741]
[1752535357565,2.18648595,161.94,161.92,6.1741]
[1752535358862,0.03984577,161.94,161.92,6.1741]
[1752535359255,4.6310703,161.94,161.92,6.1741]
[1752535361563,4.6310703,161.94,161.92,8.32074018]
[1752535364865,4.6310703,161.94,161.92,2.14664018]
[1752535365366,4.6310703,161.94,161.92,8.32074018]
[1752535365562,0.03984577,161.94,161.92,8.32074018]
[1752535365865,4.6310703,161.94,161.92,8.32074018]
[1752535366066,0.03984577,161.94,161.92,8.32074018]
[1752535366265,4.6310703,161.94,161.92,8.32074018]
[1752535366462,0.03984577,161.94,161.92,8.32074018]
[1752535367667,0.03984577,161.94,161.91,6.1746]
[1752535367866,0.03984577,161.94,161.92,2.14664018]
[1752535369268,4.61140658,161.93,161.92,2.14664018]
[1752535369467,0.03984577,161.94,161.92,2.14664018]
[1752535369864,0.03984577,161.94,161.91,8.32124018]
[1752535370369,4.610235,161.93,161.91,8.32124018]
[1752535371370,0.03984577,161.94,161.91,8.32124018]
[1752535373070,4.61772658,161.93,161.91,8.32124018]
[1752535375374,4.65757235,161.94,161.91,8.32124018]
[1752535375672,4.65757235,161.94,161.92,2.14664018]
[1752535376272,0.03984577,161.94,161.92,2.14664018]
[1752535381479,4.62105398,161.93,161.92,8.32084018]
[1752535381778,4.62105398,161.93,161.92,2.14664018]
[1752535385578,4.62105398,161.93,161.91,2.14664018]
[1752535385882,0.03984577,161.94,161.91,2.14664018]
[1752535386084,4.62289707,161.93,161.91,2.14664018]
[1752535386285,6.21364577,161.94,161.91,2.14664018]
[1752535386480,4.6232344,161.93,161.91,2.14664018]
[1752535386780,0.03984577,161.94,161.91,8.32124018]
[1752535386985,4.62323325,161.93,161.91,8.32124018]
[1752535387283,0.03984577,161.94,161.91,8.32124018]
[1752535387484,4.62384191,161.93,161.91,8.32124018]
[1752535387684,0.03984577,161.94,161.91,8.32124018]
[1752535387887,4.62384191,161.93,161.91,8.32124018]
[1752535388085,0.03984577,161.94,161.91,8.32124018]
[1752535388287,4.6239471,161.93,161.91,8.32124018]
[1752535388489,0.03984577,161.94,161.91,8.32124018]
[1752535388785,4.62453107,161.93,161.92,2.14664018]
[1752535388983,4.62453107,161.93,161.92,8.32094018]
[1752535393989,4.62453107,161.93,161.92,6.1743]
[1752535394294,4.62453107,161.93,161.92,8.32094018]
[1752535397993,4.62453107,161.93,161.92,2.14664018]
[1752535399088,4.62453107,161.93,161.92,8.32094018]
[1752535401288,0.03984577,161.94,161.93,6.174]
[1752535401489,0.03984577,161.94,161.93,8.32064018]
[1752535401683,0.03984577,161.94,161.93,6.174]
[1752535401887,0.03984577,161.94,161.93,8.32064018]
[1752535402292,0.03984577,161.94,161.92,6.1742]
[1752535402597,0.03984577,161.94,161.92,185.62084018]
[1752535403094,0.03984577,161.94,161.92,179.44664018]
[1752535403290,2.18648595,161.94,161.9,179.44664018]
[1752535403696,6.174,161.93,161.9,185.62154018]
[1752535404597,2.14664018,161.91,161.87,123.91127347]
[1752535405194,5.12512336,161.92,161.87,130.08727347]
[1752535405195,2.14664018,161.9,161.87,130.08727347]
[1752535405788,8.32184018,161.9,161.87,130.08727347]
[1752535406591,2.14664018,161.89,161.87,123.91127347]
[1752535406791,2.14664018,161.88,161.85,533.36]
[1752535407095,8.32284018,161.88,161.85,6.1767]
[1752535408092,0.04095886,161.9,161.87,2.14664018]
[1752535408292,0.04095886,161.9,161.88,2.14664018]
[1752535409097,0.04095886,161.9,161.89,6.1755]
[1752535412100,0.04095886,161.9,161.89,8.32214018]
[1752535416900,0.28993366,161.92,161.89,2.14664018]
[1752535417098,7.27176354,161.97,161.91,2.14664018]
[1752535417299,2.14664018,161.98,161.95,6.173]
[1752535418107,2.14664018,161.98,161.95,6.21837674]
[1752535418505,8.31894018,161.98,161.95,0.04537674]
[1752535418907,2.14664018,161.97,161.95,0.04537674]
[1752535419103,6.1723,161.98,161.95,0.04537674]
[1752535422710,11.29702336,161.99,161.95,0.04537674]
[1752535422904,6.1719,161.99,161.95,0.04537674]
[1752535423612,6.1721,161.98,161.95,6.21837674]
[1752535426015,6.1718,161.99,161.96,6.1728]
[1752535426516,6.1721,161.98,161.96,6.1728]
[1752535426719,6.1721,161.98,161.95,6.21837674]
[1752535428815,6.1725,161.97,161.95,0.04537674]
[1752535429908,6.1728,161.96,161.95,0.04537674]
[1752535431217,10.73748927,161.97,161.95,0.04537674]
[1752535431417,6.1725,161.97,161.95,0.04537674]
[1752535431715,10.73748927,161.97,161.95,0.04537674]
[1752535431916,6.1725,161.97,161.95,0.04537674]
[1752535432111,10.73748927,161.97,161.95,0.04537674]
[1752535432315,6.1725,161.97,161.95,0.04537674]
[1752535432515,10.73748927,161.97,161.95,0.04537674]
[1752535432812,6.1725,161.97,161.95,0.04537674]
[1752535433013,10.73748927,161.97,161.95,0.04537674]
[1752535433220,6.1725,161.97,161.95,0.04537674]
[1752535433421,10.73748927,161.97,161.95,0.04537674]
[1752535433617,6.1725,161.97,161.95,0.04537674]
[1752535433818,10.73748927,161.97,161.95,0.04537674]
[1752535434017,6.1725,161.97,161.95,0.04537674]
[1752535434218,10.73748927,161.97,161.95,0.04537674]
[1752535434422,6.1725,161.97,161.95,0.04537674]
[1752535434623,10.73748927,161.97,161.95,0.04537674]
[1752535434921,6.1725,161.97,161.95,0.04537674]
[1752535435121,10.73748927,161.97,161.95,0.04537674]
[1752535435421,6.1725,161.97,161.95,0.04537674]
[1752535436221,4.56498927,161.98,161.95,0.04537674]
[1752535436417,4.56498927,161.98,161.95,6.21857674]
[1752535439625,6.172,161.99,161.95,6.21857674]
[1752535439824,10.73698927,161.99,161.95,6.21857674]
[1752535440124,6.172,161.99,161.95,6.21857674]
[1752535440320,10.73698927,161.99,161.95,6.21857674]
[1752535440522,6.172,161.99,161.95,6.21857674]
[1752535440721,4.56498927,161.98,161.95,0.04537674]
[1752535440921,6.71180378,161.98,161.95,0.04537674]
[1752535441123,2.14681451,161.98,161.95,6.21857674]
[1752535441613,6.71180378,161.98,161.95,6.21857674]
[1752535441814,2.14681451,161.98,161.95,6.21857674]
[1752535442216,6.71180378,161.98,161.95,6.21857674]
[1752535442421,2.14681451,161.98,161.95,6.21857674]
[1752535442821,6.71180378,161.98,161.95,6.21857674]
[1752535443022,2.14681451,161.98,161.95,6.21857674]
[1752535443225,8.31881451,161.98,161.95,6.21857674]
[1752535443422,12.88380378,161.98,161.95,6.21857674]
[1752535443622,8.31881451,161.98,161.95,6.21857674]
[1752535444024,12.88380378,161.98,161.95,6.21857674]
[1752535444324,8.31881451,161.98,161.95,6.21857674]
[1752535444924,6.172,161.98,161.95,8.36539125]
[1752535445124,8.31861451,161.99,161.95,8.36539125]
[1752535445426,2.14681451,161.98,161.95,8.36539125]
[1752535447230,8.31891451,161.98,161.95,2.19219125]
[1752535447826,2.14681451,161.97,161.95,0.04537674]
[1752535448030,9.71933502,162.02,161.95,2.19219125]
[1752535448329,8.31871451,161.99,161.95,2.19219125]
[1752535448531,2.14681451,161.99,161.95,8.36519125]
[1752535448725,6.71452159,161.99,161.95,8.36519125]
[1752535448923,2.14681451,161.99,161.95,8.36519125]
[1752535449122,6.1719,161.99,161.95,8.36519125]
[1752535449326,12.88642159,161.99,161.95,8.36519125]
[1752535449526,8.31871451,161.99,161.95,8.36519125]
[1752535449931,12.88642159,161.99,161.95,8.36519125]
[1752535450231,6.1721,161.98,161.95,8.36519125]
[1752535451333,6.1721,161.98,161.95,6.21837674]
[1752535451627,6.1721,161.98,161.95,8.36519125]
[1752535452034,8.31861451,161.99,161.95,8.36519125]
[1752535452234,4.56770708,161.98,161.95,8.36519125]
[1752535454233,4.56770708,161.97,161.95,8.36519125]
[1752535454427,4.56770708,161.98,161.95,8.36519125]
[1752535454730,4.56770708,161.97,161.95,8.36519125]
[1752535454930,4.56770708,161.98,161.95,8.36519125]
[1752535455131,4.56770708,161.97,161.95,8.36519125]
[1752535455330,4.56770708,161.98,161.95,8.36519125]
[1752535455526,4.56770708,161.97,161.95,8.36519125]
[1752535455725,10.73990708,161.98,161.95,2.19219125]
[1752535456033,4.56770708,161.97,161.95,2.19219125]
[1752535456833,4.56770708,161.97,161.95,8.36539125]
[1752535457034,8.31861451,161.99,161.95,8.36539125]
[1752535457336,4.57638439,161.98,161.95,8.36539125]
[1752535457634,4.57638439,161.97,161.95,2.19219125]
[1752535457828,8.31861451,161.99,161.95,2.19219125]
[1752535458031,4.57638627,161.98,161.95,8.36519125]
[1752535458232,4.57638627,161.97,161.95,8.36519125]
[1752535458436,8.31861451,161.99,161.95,8.36519125]
[1752535458634,4.57797821,161.98,161.95,8.36519125]
[1752535458835,4.57797821,161.97,161.95,8.36519125]
[1752535459033,8.31861451,161.99,161.95,8.36519125]
[1752535459234,4.57945383,161.98,161.95,8.36519125]
[1752535459431,4.57945383,161.97,161.95,8.36519125]
[1752535459731,4.57945383,161.96,161.95,8.36519125]
[1752535459939,4.57945383,161.96,161.95,6.21837674]
[1752535462938,4.58465927,161.96,161.95,6.21837674]
[1752535466242,4.58465927,161.96,161.95,0.04537674]
[1752535466742,4.58465927,161.96,161.95,6.21857674]
[1752535467747,4.58465927,161.96,161.95,0.04537674]
[1752535468839,4.58465927,161.96,161.95,6.21857674]
[1752535470044,8.31901451,161.98,161.95,6.21857674]
[1752535470342,10.75461601,161.97,161.95,0.04537674]
[1752535470539,4.58221601,161.96,161.95,0.04537674]
[1752535470938,4.58221601,161.96,161.95,6.21857674]
[1752535473451,4.58221601,161.96,161.95,0.04537674]
[1752535473744,4.58221601,161.96,161.91,2.14743894]
[1752535473745,6.72965495,161.96,161.91,2.14743894]
[1752535473947,6.72980729,161.95,161.91,2.14759128]
[1752535474152,4.58221601,161.94,161.92,6.1746]
[1752535474349,2.14759128,161.95,161.91,2.14759128]
[1752535474543,6.72960783,161.94,161.92,6.1747]
[1752535474743,2.14759128,161.94,161.92,6.1747]
[1752535475446,4.58062724,161.93,161.92,6.1747]
[1752535477847,6.72821852,161.93,161.92,6.1747]
[1752535479248,6.72821852,161.93,161.91,6.1751]
[1752535479448,4.58062724,161.92,161.91,6.1751]
[1752535481147,4.58062724,161.92,161.9,6.1756]
[1752535483952,2.18773574,161.93,161.9,6.1756]
[1752535484655,2.14759128,161.92,161.88,179.42759128]
[1752535485354,2.14759128,161.92,161.9,6.1756]
[1752535486355,8.32289128,161.91,161.86,2.14759128]
[1752535486554,2.14759128,161.89,161.86,179.42759128]
[1752535487055,2.19086668,161.89,161.87,6.1766]
[1752535487258,0.0432754,161.89,161.87,6.1766]
[1752535487654,0.0432754,161.89,161.88,6.1764]
[1752535501165,0.0432754,161.89,161.87,185.62429128]
[1752535505575,2.19086668,161.89,161.86,2.14759128]
[1752535505775,2.19086668,161.89,161.87,177.3]
[1752535505977,2.14759128,161.88,161.86,177.3]
[1752535506379,0.0432754,161.89,161.86,177.3]
[1752535506575,2.14759128,161.88,161.86,177.3]
[1752535506977,2.14759128,161.88,161.85,183.4774]
[1752535508178,2.14759128,161.87,161.84,6.1778]
[1752535508680,2.14759128,161.87,161.84,183.4978]
[1752535509781,2.14759128,161.87,161.85,6.1775]
[1752535510080,2.14759128,161.88,161.85,6.1775]
[1752535510280,2.14759128,161.86,161.83,183.4981]
[1752535511481,8.32459128,161.87,161.83,183.4981]
[1752535511682,2.14759128,161.86,161.83,183.4981]
[1752535513579,6.1766,161.88,161.84,6.1779]
[1752535513790,2.14759128,161.87,161.84,6.1779]
[1752535516491,2.14759128,161.86,161.84,6.1779]
[1752535516788,6.1766,161.88,161.84,6.1779]
[1752535516989,2.14759128,161.86,161.84,6.1779]
[1752535518591,2.14759128,161.87,161.84,6.1779]
[1752535519393,0.0432754,161.89,161.86,2.14759128]
[1752535519586,0.0432754,161.89,161.87,179.48759128]
[1752535519785,0.0432754,161.89,161.88,8.32399128]
[1752535521291,6.70940216,161.94,161.9,6.1756]
[1752535521487,4.56181088,161.93,161.91,179.48759128]
[1752535521687,6.70940216,161.94,161.91,177.34]
[1752535521888,4.56181088,161.93,161.91,177.34]
[1752535522890,6.70940216,161.93,161.91,177.34]
[1752535523899,4.56181088,161.93,161.91,177.34]
[1752535524686,4.56181088,161.93,161.91,183.5152]
[1752535525187,4.56181088,161.93,161.91,185.66279128]
[1752535525384,4.56181088,161.94,161.91,185.66279128]
[1752535525585,4.56181088,161.93,161.91,185.66279128]
[1752535525790,4.56181088,161.94,161.91,185.66279128]
[1752535525991,4.56181088,161.93,161.91,185.66279128]
[1752535527795,4.56181088,161.96,161.92,2.14759128]
[1752535527995,4.56181088,161.96,161.93,2.14759128]
[1752535528393,4.56181088,161.96,161.93,8.32209128]
[1752535528695,8.32089128,161.97,161.93,8.32209128]
[1752535531394,8.32089128,161.97,161.94,2.14759128]
[1752535531996,8.32089128,161.97,161.93,2.14759128]
[1752535532395,8.32089128,161.97,161.93,2.19118915]
[1752535532895,6.1734,161.96,161.93,2.19118915]
[1752535533096,8.32099128,161.96,161.93,2.19118915]
[1752535533892,6.1732,161.97,161.93,2.19118915]
[1752535534092,2.14759128,161.96,161.93,2.19118915]
[1752535539903,2.14759128,161.96,161.93,8.36568915]
[1752535543504,2.14759128,161.98,161.94,2.14759128]
[1752535544400,2.14759128,161.98,161.95,6.1735]
[1752535545408,2.14759128,161.98,161.95,8.32109128]
[1752535545607,10.73391088,162.0,161.95,8.32109128]
[1752535545806,2.14759128,161.98,161.95,8.32109128]
[1752535546106,2.14759128,161.99,161.95,8.32109128]
[1752535546605,2.14759128,161.99,161.96,2.14759128]
[1752535547605,10.73391088,162.0,161.97,2.14759128]
[1752535547606,4.56181088,162.0,161.97,2.14759128]
[1752535547806,4.56181088,162.05,161.99,2.14759128]
[1752535548008,4.56181088,162.05,162.0,2.14759128]
[1752535548205,2.14759128,162.04,162.01,2.14759128]
[1752535551013,2.14759128,162.05,162.01,2.14759128]
[1752535551213,2.14759128,162.05,162.02,2.14759128]
[1752535551408,8.31729128,162.06,162.02,2.14759128]
[1752535551814,2.14759128,162.07,162.03,2.14759128]
[1752535552113,2.14759128,162.07,162.04,2.14759128]
[1752535552914,2.14759128,162.07,162.04,2.18775922]
[1752535553214,6.1692,162.08,162.04,2.18775922]
[1752535553512,2.14759128,162.07,162.04,0.04016794]
[1752535554313,2.14759128,162.07,162.04,2.18775922]
[1752535556214,2.14759128,162.07,162.04,8.35805922]
[1752535556409,8.31619128,162.09,162.05,2.14759128]
[1752535557516,2.14759128,162.08,162.04,0.04016794]
[1752535557716,2.14759128,162.08,162.05,2.14759128]
[1752535558014,2.14759128,162.08,162.04,8.35795922]
[1752535559412,6.1682,162.1,162.05,2.14759128]
[1752535559612,2.14759128,162.09,162.06,2.14759128]
[1752535560414,8.31579128,162.1,162.06,2.14759128]
[1752535560814,6.1685,162.09,162.06,2.14759128]
[1752535561317,2.14759128,162.1,162.06,2.14759128]
[1752535561518,2.14759128,162.09,162.06,8.31719128]
[1752535561713,2.14759128,162.1,162.06,8.31719128]
[1752535562114,8.31569128,162.1,162.06,8.31719128]
[1752535562514,2.14759128,162.09,162.06,8.31719128]
[1752535563118,2.14759128,162.09,162.05,8.31739128]
[1752535565521,2.14759128,162.09,162.06,2.14759128]
[1752535567017,2.14759128,162.09,162.05,6.1698]
[1752535567221,2.14759128,162.09,162.06,2.14759128]
[1752535567422,8.31599128,162.09,162.06,2.14759128]
[1752535568821,6.1684,162.09,162.06,2.14759128]
[1752535569023,2.14759128,162.09,162.06,2.14759128]
[1752535569218,6.1682,162.1,162.06,2.14759128]
[1752535569423,2.14759128,162.09,162.06,2.14759128]
[1752535569718,2.14759128,162.09,162.06,8.31719128]
[1752535570222,2.14759128,162.09,162.06,2.14759128]
[1752535571019,2.14759128,162.09,162.05,8.31739128]
[1752535571919,2.14759128,162.08,161.97,12.3456]
[1752535572124,2.14759128,162.07,162.04,2.14759128]
[1752535572621,2.14759128,162.07,161.98,177.12]
[1752535572622,2.14759128,162.07,162.03,2.14759128]
[1752535572818,2.14759128,162.07,161.97,12.3456]
[1752535573017,2.14759128,162.05,161.97,12.3456]
[1752535573227,2.14759128,162.04,162.0,2.14759128]
[1752535573434,2.14759128,162.05,162.02,6.1709]
[1752535574422,2.14759128,162.05,162.03,6.1706]
[1752535574923,6.1694,162.07,162.03,6.1706]
[1752535574924,2.14759128,162.06,162.03,6.1706]
[1752535579827,2.14759128,162.06,162.04,6.1703]
[1752535583229,2.14759128,162.06,162.05,6.17]
[1752535586324,2.14759128,162.06,162.04,6.1702]
[1752535588130,2.14759128,162.06,162.05,6.1699]
[1752535590233,6.70940216,162.06,162.05,6.1699]
[1752535590435,2.14759128,162.06,162.05,6.1699]
[1752535590731,6.70940216,162.06,162.05,6.1699]
[1752535590930,2.14759128,162.06,162.05,6.1699]
[1752535591124,6.70940216,162.06,162.05,6.1699]
[1752535591530,6.70940216,162.06,162.03,6.1704]
[1752535591730,4.56181088,162.05,162.03,6.1704]
[1752535592226,2.14759128,162.06,162.03,6.1704]
[1752535593131,2.14759128,162.06,162.02,2.14759128]
[1752535593727,2.14759128,162.06,162.03,6.1705]
[1752535594931,4.54184689,162.05,162.03,6.1705]
[1752535595131,4.54184689,162.04,162.03,6.1705]
[1752535599236,5.16492638,162.08,162.07,6.1692]
[1752535599536,5.16492638,162.08,162.07,8.31679128]
[1752535599730,3.22168193,162.12,162.07,8.31679128]
[1752535599933,3.22168193,162.12,162.09,2.14759128]
[1752535600533,1.07409065,162.12,162.09,2.14759128]
[1752535600934,2.14759128,162.1,162.06,2.14759128]
[1752535601125,2.14759128,162.09,162.05,2.14759128]
[1752535602340,2.14759128,162.1,162.07,6.1692]
[1752535604231,2.14759128,162.1,162.06,8.31699128]
[1752535604637,2.14759128,162.1,162.06,2.14759128]
[1752535606138,2.14759128,162.1,162.07,6.169]
[1752535609438,8.31569128,162.1,162.07,6.169]
[1752535611541,12.82667842,162.1,162.07,6.169]
[1752535611739,8.31569128,162.1,162.07,6.169]
[1752535611940,12.82667842,162.1,162.07,6.169]
[1752535612142,2.14759128,162.1,162.07,6.169]
[1752535612737,8.31569128,162.1,162.06,8.31709128]
[1752535612933,12.82667842,162.1,162.06,8.31709128]
[1752535613137,2.14759128,162.08,161.98,136.48666]
[1752535613337,2.14759128,162.06,162.02,2.14759128]
[1752535613739,2.14759128,162.06,162.03,6.1706]
[1752535617444,2.14759128,162.06,162.04,6.1703]
[1752535617643,2.14759128,162.06,162.03,2.14759128]
[1752535618049,4.50526952,162.08,161.98,126.09529767]
[1752535618245,6.1698,162.06,162.01,2.14759128]
[1752535618447,2.14759128,162.05,162.01,2.14759128]
[1752535619349,2.14759128,162.05,162.02,6.1711]
[1752535619952,2.14759128,162.05,162.02,8.31869128]
[1752535621553,8.31739128,162.06,162.02,8.31869128]
[1752535622250,2.14759128,162.06,162.02,2.14759128]
[1752535622450,2.14759128,162.07,162.03,2.14759128]
[1752535622647,2.14759128,162.07,162.04,6.1701]
[1752535622848,6.6526588,162.07,162.04,6.1701]
[1752535623046,4.50506752,162.07,162.05,2.14759128]
[1752535623249,5.15063615,162.1,162.05,8.31729128]
[1752535623250,4.50506752,162.08,162.05,8.31729128]
[1752535623456,6.6526588,162.09,162.05,2.14759128]
[1752535623649,4.50506752,162.08,162.05,2.14759128]
[1752535623850,4.50506752,162.08,162.06,6.1696]
[1752535625257,6.6526588,162.08,162.05,8.31739128]
[1752535625456,2.14759128,162.07,162.03,179.22759128]
[1752535625954,2.14759128,162.07,162.03,2.14759128]
[1752535626157,2.14759128,162.06,162.03,177.08]
[1752535627261,2.14759128,162.06,162.04,6.1703]
[1752535628956,4.50506752,162.06,162.04,6.1703]
[1752535629160,10.67466752,162.06,162.03,6.1706]
[1752535629356,6.1696,162.06,162.03,6.1706]
[1752535629557,10.67466752,162.06,162.03,6.1706]
[1752535629859,6.1696,162.06,162.03,6.1706]
[1752535630059,10.67466752,162.06,162.03,6.1706]
[1752535630259,6.1696,162.06,162.03,6.1706]
[1752535630459,10.67466752,162.06,162.03,6.1706]
[1752535630763,10.67446752,162.07,162.04,6.1703]
[1752535630964,4.50506752,162.06,162.04,6.1703]
[1752535631862,4.50506752,162.06,162.03,6.1705]
[1752535633161,10.67466752,162.06,162.03,6.1705]
[1752535633366,6.1696,162.06,162.03,6.1705]
[1752535633563,10.67466752,162.06,162.03,6.1705]
[1752535633760,6.1696,162.06,162.02,183.2509]
[1752535633961,10.67466752,162.06,162.02,183.2509]
[1752535634163,6.1696,162.06,162.02,183.2509]
[1752535634363,6.17,162.05,162.02,183.2509]
[1752535635369,3.35101622,162.04,161.97,536.37101622]
[1752535635561,3.35101622,162.04,161.98,177.08]
[1752535635760,6.1711,162.02,161.99,6.1721]
[1752535636467,4.50506752,162.03,161.98,177.08]
[1752535637968,6.1717,162.01,161.98,177.08]
[1752535638970,6.1717,162.01,161.98,183.2524]
[1752535639164,6.1713,162.02,161.98,183.2524]
[1752535641471,6.1716,162.01,161.98,183.2524]
[1752535642576,4.50130452,162.06,161.99,3.35101622]
[1752535643071,6.17,162.05,162.01,6.1712]
[1752535643274,6.17,162.05,162.02,177.1]
[1752535644973,6.1704,162.04,162.02,177.1]
[1752535646474,6.1704,162.04,162.02,183.2711]
[1752535648374,10.67140452,162.05,162.02,183.2711]
[1752535648569,4.50130452,162.07,162.02,183.2711]
[1752535648770,4.50130452,162.06,162.02,183.2711]
[1752535648972,4.50130452,162.07,162.02,183.2711]
[1752535649174,4.50130452,162.06,162.02,183.2711]
[1752535649368,4.50130452,162.07,162.02,183.2711]
[1752535649573,6.17,162.05,162.02,183.2711]
[1752535649976,6.17,162.05,162.03,6.1707]
[1752535652180,6.17,162.05,162.02,183.271]
[1752535652974,4.50130452,162.06,162.02,177.1]
[1752535653182,4.50130452,162.08,162.03,3.35101622]
[1752535653378,4.50130452,162.09,162.03,3.35101622]
[1752535653579,4.50130452,162.08,162.03,3.35101622]
[1752535653878,4.50130452,162.09,162.03,3.35101622]
[1752535654081,4.50130452,162.08,162.03,3.35101622]
[1752535654280,4.50130452,162.07,162.03,3.35101622]
[1752535654474,4.50130452,162.09,162.03,3.35101622]
[1752535654676,4.50130452,162.08,162.03,3.35101622]
[1752535654875,4.50130452,162.07,162.03,3.35101622]
[1752535655077,6.1699,162.06,162.04,2.14425819]
[1752535656980,6.1699,162.06,162.03,6.1705]
[1752535657782,6.1694,162.07,162.04,6.1703]
[1752535657977,4.50130452,162.06,162.04,6.1703]
[1752535663186,4.50130452,162.06,162.03,6.1706]
[1752535663479,4.50130452,162.05,162.03,6.1706]
[1752535667992,6.1697,162.06,162.03,6.1706]
[1752535668189,4.50130452,162.05,162.03,6.1706]
[1752535670492,4.50130452,162.05,162.04,6.1703]
[1752535670693,4.50886143,162.05,162.04,6.1703]
[1752535671496,4.50886143,162.06,162.04,6.1703]
[1752535671694,4.50886143,162.05,162.04,6.1703]
[1752535671895,4.50886143,162.06,162.04,6.1703]
[1752535672095,4.50886143,162.05,162.03,183.2305]
[1752535672393,4.50886143,162.06,162.03,183.2305]
[1752535672595,4.50886143,162.05,162.03,183.2305]
[1752535672896,4.50886143,162.06,162.03,183.2305]
[1752535673096,4.50886143,162.05,162.04,6.1703]
[1752535673399,4.50886143,162.06,162.04,6.1703]
[1752535673595,4.50886143,162.05,162.04,6.1703]
[1752535673796,4.50886143,162.06,162.04,6.1703]
[1752535674096,4.50886143,162.05,162.04,6.1703]
[1752535674290,4.50886143,162.06,162.04,6.1703]
[1752535676098,10.67846143,162.06,162.03,6.1706]
[1752535676294,6.1696,162.06,162.03,183.2106]
[1752535676504,4.50886143,162.07,162.03,177.04]
[1752535676700,10.67866143,162.06,162.03,183.2106]
[1752535676998,4.50886143,162.05,162.03,183.2106]
[1752535678896,4.50886143,162.05,162.03,185.35502645]
[1752535679503,4.50886143,162.05,162.04,8.31472645]
[1752535679703,4.50886143,162.07,162.04,8.31472645]
[1752535679901,4.50886143,162.06,162.04,6.1703]
[1752535681003,4.50886143,162.06,162.05,6.17]
[1752535681603,4.50886143,162.06,162.04,6.1702]
[1752535681805,8.31382645,162.07,162.03,179.18442645]
[1752535682004,4.5133515,162.06,162.03,179.18442645]
[1752535682205,8.31382645,162.07,162.04,6.1701]
[1752535682406,10.68341541,162.06,162.04,6.1701]
[1752535682606,6.1696,162.06,162.03,179.18442645]
[1752535682807,4.51377853,162.05,162.03,185.35502645]